[Event "Wch u20 girls"]
[Site "Kocaeli"]
[Date "2013.09.23"]
[Round "10.14"]
[White "Gevorgyan, Maria"]
[Black "Vo, Thi Kim Phung"]
[Result "1-0"]
[ECO "B42"]
[WhiteElo "2143"]
[BlackElo "2219"]
[PlyCount "111"]
[EventDate "2013.09.??"]
[EventType "swiss"]
[EventRounds "13"]
[EventCountry "TUR"]
[Source "CBase R.Goldau"]
[SourceDate "2000.03.01"]
[TimeControl "40/5400+30:1800+30"]

1. e4 {[%emt 0:00:30]} c5 {[%emt 0:00:30]} 2. Nf3 {[%emt 0:00:00]} e6 {[%emt 0:
00:00]} 3. d4 {[%emt 0:00:00]} cxd4 {[%emt 0:00:00]} 4. Nxd4 {[%emt 0:00:00]}
a6 {[%emt 0:00:30]} 5. Bd3 {[%emt 0:00:00]} Qc7 {[%emt 0:02:30]} 6. Qe2 {[%emt
0:02:30]} d6 {[%emt 0:03:30]} 7. c4 {[%emt 0:00:30]} b5 {[%emt 0:09:30]} 8. O-O
{[%emt 0:04:30]} bxc4 {[%emt 0:00:30]} 9. Bxc4 {[%emt 0:00:00]} Nf6 {[%emt 0:
01:30]} 10. Nc3 {[%emt 0:03:00]} Be7 {[%emt 0:00:00]} 11. Be3 {[%emt 0:03:30]}
O-O {[%emt 0:02:00]} 12. Rac1 {[%emt 0:00:30]} Qb7 {[%emt 0:00:30]} 13. f3 {
[%emt 0:02:30]} Nbd7 {[%emt 0:00:30]} 14. g4 {[%emt 0:08:30]} h6 {[%emt 0:08:
30]} 15. h4 {[%emt 0:16:30]} Ne5 {[%emt 0:05:30]} 16. Bb3 {[%emt 0:01:30]} Re8
{[%emt 0:08:30]} 17. g5 {[%emt 0:02:30]} hxg5 {[%emt 0:06:30]} 18. hxg5 {[%emt
0:02:30]} Nh5 {[%emt 0:00:30]} 19. Kh2 {[%emt 0:08:30]} Ng6 {[%emt 0:04:30]}
20. f4 {[%emt 0:06:30]} Nhxf4 {[%emt 0:00:30]} 21. Rxf4 {[%emt 0:00:30]} Nxf4 {
[%emt 0:00:30]} 22. Bxf4 {[%emt 0:00:30]} g6 {[%emt 0:00:30]} 23. Qf3 {[%emt 0:
08:30]} Bf8 {[%emt 0:05:30]} 24. Rf1 {[%emt 0:06:30]} Bg7 {[%emt 0:07:30]} 25.
Nc2 {[%emt 0:01:30]} Qe7 {[%emt 0:05:30]} 26. Ne3 {[%emt 0:03:50]} Ra7 {[%emt
0:00:30]} 27. Ng4 {[%emt 0:01:26]} Rc7 {[%emt 0:16:12]} 28. Be3 {[%emt 0:05:20]
} Bxc3 {[%emt 0:03:17]} 29. bxc3 {[%emt 0:00:12]} Kg7 {[%emt 0:00:08]} 30. e5 {
[%emt 0:04:39]} Rh8+ {[%emt 0:00:57]} 31. Kg1 {[%emt 0:02:26]} Bb7 {[%emt 0:01:
36]} 32. Qf6+ {[%emt 0:00:02]} Qxf6 {[%emt 0:00:15]} 33. gxf6+ {[%emt 0:00:09]}
Kh7 {[%emt 0:02:02]} 34. exd6 {[%emt 0:00:51]} Rxc3 {[%emt 0:00:08]} 35. Kf2 {
[%emt 0:01:36]} Rd8 {[%emt 0:00:40]} 36. Rd1 {[%emt 0:00:02]} g5 {[%emt 0:04:
37]} 37. d7 {[%emt 0:00:50]} Bc6 {[%emt 0:01:36]} 38. Ne5 {[%emt 0:00:15]} Bxd7
{[%emt 0:00:38]} 39. Rxd7 {[%emt 0:01:54]} Rxd7 {[%emt 0:00:06]} 40. Nxd7 {
[%emt 0:00:00]} Kg6 {[%emt 0:00:00]} 41. Nc5 {[%emt 0:01:28]} a5 {[%emt 0:02:
18]} 42. a4 {[%emt 0:00:30]} g4 {[%emt 0:00:30]} 43. Ke2 {[%emt 0:00:00]} e5 {
[%emt 0:01:30]} 44. Kd2 {[%emt 0:00:00]} Rxb3 {[%emt 0:00:30]} 45. Nxb3 {[%emt
0:00:30]} Kxf6 {[%emt 0:00:30]} 46. Nxa5 {[%emt 0:00:00]} Ke6 {[%emt 0:00:30]}
47. Nb7 {[%emt 0:01:00]} Kd7 {[%emt 0:00:30]} 48. a5 {[%emt 0:00:00]} Kc7 {
[%emt 0:00:00]} 49. a6 {[%emt 0:00:00]} Kb8 {[%emt 0:01:00]} 50. Nd8 {[%emt 0:
00:00]} f5 {[%emt 0:00:00]} 51. a7+ {[%emt 0:00:00]} Ka8 {[%emt 0:00:00]} 52.
Ne6 {[%emt 0:00:30]} f4 {[%emt 0:02:30]} 53. Nc7+ {[%emt 0:00:00]} Kb7 {[%emt
0:00:00]} 54. a8=Q+ {[%emt 0:00:00]} Kxc7 {[%emt 0:00:00]} 55. Bxf4 {[%emt 0:
00:30]} exf4 {[%emt 0:00:30]} 56. Qe4 {[%emt 0:00:00]} 1-0

[Event "Wch u20 girls"]
[Site "Kocaeli"]
[Date "2013.09.23"]
[Round "10.15"]
[White "Kurbonboeva, Sarvinoz"]
[Black "Rakhmangulova, Anastasiya"]
[Result "1-0"]
[ECO "A58"]
[WhiteElo "2120"]
[BlackElo "2194"]
[PlyCount "91"]
[EventDate "2013.09.??"]
[EventType "swiss"]
[EventRounds "13"]
[EventCountry "TUR"]
[Source "CBase R.Goldau"]
[SourceDate "2000.03.01"]
[TimeControl "40/5400+30:1800+30"]

1. d4 {[%emt 0:00:30]} Nf6 {[%emt 0:00:30]} 2. c4 {[%emt 0:00:00]} c5 {[%emt 0:
00:00]} 3. d5 {[%emt 0:00:00]} b5 {[%emt 0:00:00]} 4. cxb5 {[%emt 0:00:30]} a6
{[%emt 0:00:00]} 5. bxa6 {[%emt 0:00:00]} d6 {[%emt 0:00:00]} 6. Nc3 {[%emt 0:
00:00]} Bxa6 {[%emt 0:00:00]} 7. g3 {[%emt 0:00:30]} g6 {[%emt 0:00:00]} 8. Bg2
{[%emt 0:00:00]} Bg7 {[%emt 0:00:30]} 9. Nf3 {[%emt 0:00:00]} O-O {[%emt 0:00:
00]} 10. O-O {[%emt 0:00:30]} Nbd7 {[%emt 0:00:00]} 11. Rb1 {[%emt 0:00:00]}
Qa5 {[%emt 0:00:30]} 12. Bd2 {[%emt 0:00:00]} Rfb8 {[%emt 0:00:30]} 13. Qc2 {
[%emt 0:00:30]} Nb6 {[%emt 0:00:30]} 14. b3 {[%emt 0:02:30]} Qa3 {[%emt 0:00:
30]} 15. Bc1 {[%emt 0:00:30]} Qa5 {[%emt 0:00:00]} 16. Bd2 {[%emt 0:00:30]} Qa3
{[%emt 0:00:00]} 17. Bc1 {[%emt 0:00:00]} Qa5 {[%emt 0:00:30]} 18. Rd1 {[%emt
0:01:00]} Bb7 {[%emt 0:00:30]} 19. Nh4 {[%emt 0:13:30]} Nfd7 {[%emt 0:03:30]}
20. Bd2 {[%emt 0:02:30]} Qa3 {[%emt 0:09:30]} 21. Bc1 {[%emt 0:05:30]} Qa5 {
[%emt 0:00:30]} 22. Bd2 {[%emt 0:01:30]} c4 {[%emt 0:13:30]} 23. Na4 {[%emt 0:
21:30]} Qa6 {[%emt 0:02:30]} 24. Nxb6 {[%emt 0:02:30]} Nxb6 {[%emt 0:00:00]}
25. Be3 {[%emt 0:00:30]} Nd7 {[%emt 0:17:00]} 26. bxc4 {[%emt 0:05:30]} Qxa2 {
[%emt 0:00:30]} 27. Qxa2 {[%emt 0:09:30]} Rxa2 {[%emt 0:00:00]} 28. c5 {[%emt
0:00:30]} Nxc5 {[%emt 0:16:00]} 29. Bxc5 {[%emt 0:01:30]} dxc5 {[%emt 0:00:30]}
30. d6 {[%emt 0:00:30]} exd6 {[%emt 0:00:00]} 31. Rxb7 {[%emt 0:06:30]} Rxb7 {
[%emt 0:00:00]} 32. Bxb7 {[%emt 0:00:30]} Rxe2 {[%emt 0:00:30]} 33. Nf3 {[%emt
0:03:30]} Rb2 {[%emt 0:03:30]} 34. Bd5 {[%emt 0:03:30]} h6 {[%emt 0:00:00]} 35.
Nd2 {[%emt 0:01:30]} Bd4 {[%emt 0:00:00]} 36. Ne4 {[%emt 0:02:00]} Rb6 {[%emt
0:03:30]} 37. Nd2 {[%emt 0:02:14]} Kg7 {[%emt 0:01:30]} 38. Nc4 {[%emt 0:03:42]
} Ra6 {[%emt 0:00:00]} 39. Rd2 {[%emt 0:00:01]} Kf6 {[%emt 0:02:00]} 40. Re2 {
[%emt 0:00:00]} h5 {[%emt 0:00:00]} 41. Bb7 {[%emt 0:09:03]} Ra7 {[%emt 0:04:
00]} 42. Nxd6 {[%emt 0:03:30]} g5 {[%emt 0:00:30]} 43. Ne8+ {[%emt 0:08:30]}
Kg6 {[%emt 0:00:00]} 44. Be4+ {[%emt 0:00:00]} f5 {[%emt 0:01:00]} 45. Bd3 {
[%emt 0:01:00]} g4 {[%emt 0:00:00]} 46. Nd6 {[%emt 0:05:35]} 1-0

[Event "Wch u20 girls"]
[Site "Kocaeli"]
[Date "2013.09.23"]
[Round "10.16"]
[White "Xiao, Yiyi"]
[Black "Sviridova, Vlada"]
[Result "1-0"]
[ECO "D46"]
[WhiteElo "2163"]
[BlackElo "2063"]
[PlyCount "113"]
[EventDate "2013.09.??"]
[EventType "swiss"]
[EventRounds "13"]
[EventCountry "TUR"]
[Source "CBase R.Goldau"]
[SourceDate "2000.03.01"]
[TimeControl "40/5400+30:1800+30"]

1. d4 {[%emt 0:00:30]} d5 {[%emt 0:00:30]} 2. c4 {[%emt 0:00:30]} c6 {[%emt 0:
00:00]} 3. Nc3 {[%emt 0:00:00]} Nf6 {[%emt 0:00:00]} 4. e3 {[%emt 0:00:00]} e6
{[%emt 0:00:00]} 5. Nf3 {[%emt 0:00:30]} Nbd7 {[%emt 0:00:00]} 6. Qc2 {[%emt 0:
00:30]} Bd6 {[%emt 0:00:30]} 7. Be2 {[%emt 0:00:00]} dxc4 {[%emt 0:04:30]} 8.
Bxc4 {[%emt 0:00:00]} b5 {[%emt 0:00:30]} 9. Bd3 {[%emt 0:02:30]} Bb7 {[%emt 0:
01:30]} 10. O-O {[%emt 0:00:30]} O-O {[%emt 0:00:30]} 11. a3 {[%emt 0:02:30]}
a5 {[%emt 0:00:30]} 12. Rd1 {[%emt 0:02:30]} Qc7 {[%emt 0:02:30]} 13. e4 {
[%emt 0:03:30]} e5 {[%emt 0:00:30]} 14. h3 {[%emt 0:00:00]} b4 {[%emt 0:08:30]}
15. Ne2 {[%emt 0:02:00]} c5 {[%emt 0:00:30]} 16. dxe5 {[%emt 0:07:30]} Bxe5 {
[%emt 0:05:30]} 17. Nxe5 {[%emt 0:21:30]} Nxe5 {[%emt 0:02:30]} 18. Bf4 {[%emt
0:00:30]} Qe7 {[%emt 0:02:30]} 19. Bxe5 {[%emt 0:00:30]} Qxe5 {[%emt 0:00:30]}
20. f4 {[%emt 0:00:30]} Qe6 {[%emt 0:02:30]} 21. e5 {[%emt 0:03:30]} Qb6 {
[%emt 0:25:30]} 22. Bc4 {[%emt 0:11:30]} Ne4 {[%emt 0:09:30]} 23. f5 {[%emt 0:
05:30]} Kh8 {[%emt 0:12:43]} 24. Nf4 {[%emt 0:03:30]} Qh6 {[%emt 0:06:00]} 25.
Rf1 {[%emt 0:11:30]} Rae8 {[%emt 0:03:49]} 26. axb4 {[%emt 0:02:22]} Rxe5 {
[%emt 0:01:12]} 27. bxa5 {[%emt 0:00:37]} Rxf5 {[%emt 0:00:18]} 28. a6 {[%emt
0:00:23]} Ba8 {[%emt 0:01:22]} 29. Qc1 {[%emt 0:03:42]} Qf6 {[%emt 0:03:02]}
30. Qe3 {[%emt 0:02:39]} Qxb2 {[%emt 0:01:47]} 31. Nd3 {[%emt 0:04:29]} Rxf1+ {
[%emt 0:03:12]} 32. Rxf1 {[%emt 0:00:33]} Qc3 {[%emt 0:00:30]} 33. Rc1 {[%emt
0:00:30]} Qa3 {[%emt 0:00:30]} 34. Qe1 {[%emt 0:00:35]} Qa4 {[%emt 0:01:53]}
35. Ne5 {[%emt 0:01:14]} Nd6 {[%emt 0:01:21]} 36. Qc3 {[%emt 0:02:14]} Nxc4 {
[%emt 0:00:17]} 37. Qxc4 {[%emt 0:00:07]} Qa3 {[%emt 0:00:55]} 38. Qxc5 {[%emt
0:00:13]} Qxc5+ {[%emt 0:00:16]} 39. Rxc5 {[%emt 0:00:03]} f6 {[%emt 0:00:24]}
40. Nd7 {[%emt 0:00:00]} Rd8 {[%emt 0:00:00]} 41. Nb6 {[%emt 0:01:19]} Kg8 {
[%emt 0:05:59]} 42. Rc8 {[%emt 0:01:30]} Rxc8 {[%emt 0:00:30]} 43. Nxc8 {[%emt
0:00:30]} Kf7 {[%emt 0:00:00]} 44. Nb6 {[%emt 0:00:30]} Bc6 {[%emt 0:00:00]}
45. a7 {[%emt 0:00:30]} Ke6 {[%emt 0:00:00]} 46. a8=Q {[%emt 0:00:00]} Bxa8 {
[%emt 0:00:00]} 47. Nxa8 {[%emt 0:00:00]} Kd6 {[%emt 0:03:30]} 48. Nb6 {[%emt
0:00:30]} Kc6 {[%emt 0:01:30]} 49. Nc4 {[%emt 0:00:30]} Kd5 {[%emt 0:00:30]}
50. Nd2 {[%emt 0:01:30]} Kd4 {[%emt 0:00:30]} 51. Kf2 {[%emt 0:00:00]} Kd3 {
[%emt 0:00:30]} 52. Nb3 {[%emt 0:00:00]} Ke4 {[%emt 0:03:30]} 53. Nc5+ {[%emt
0:00:30]} Kd5 {[%emt 0:00:30]} 54. Nd7 {[%emt 0:00:30]} Kd6 {[%emt 0:01:51]}
55. Nf8 {[%emt 0:04:30]} h5 {[%emt 0:00:14]} 56. Ng6 {[%emt 0:00:30]} Kc5 {
[%emt 0:02:14]} 57. Nf4 {[%emt 0:00:30]} 1-0

[Event "Wch u20 girls"]
[Site "Kocaeli"]
[Date "2013.09.23"]
[Round "10.17"]
[White "Pujari, Rucha"]
[Black "De Seroux, Camille"]
[Result "1/2-1/2"]
[ECO "E62"]
[WhiteElo "2154"]
[BlackElo "2108"]
[PlyCount "237"]
[EventDate "2013.09.??"]
[EventType "swiss"]
[EventRounds "13"]
[EventCountry "TUR"]
[Source "CBase R.Goldau"]
[SourceDate "2000.03.01"]
[TimeControl "40/5400+30:1800+30"]

1. d4 {[%emt 0:01:30]} Nf6 {[%emt 0:00:30]} 2. Nf3 {[%emt 0:00:30]} g6 {[%emt
0:00:00]} 3. g3 {[%emt 0:00:00]} Bg7 {[%emt 0:00:00]} 4. Bg2 {[%emt 0:00:00]}
O-O {[%emt 0:00:30]} 5. O-O {[%emt 0:00:30]} d6 {[%emt 0:00:00]} 6. c4 {[%emt
0:00:30]} c6 {[%emt 0:00:00]} 7. Nc3 {[%emt 0:00:30]} Bf5 {[%emt 0:00:30]} 8.
Ne1 {[%emt 0:01:30]} Qc8 {[%emt 0:00:30]} 9. e4 {[%emt 0:01:30]} Bh3 {[%emt 0:
00:30]} 10. f3 {[%emt 0:02:30]} Bxg2 {[%emt 0:00:00]} 11. Kxg2 {[%emt 0:00:30]}
Nbd7 {[%emt 0:00:00]} 12. Be3 {[%emt 0:01:30]} b5 {[%emt 0:01:30]} 13. cxb5 {
[%emt 0:02:30]} cxb5 {[%emt 0:00:00]} 14. Nxb5 {[%emt 0:14:30]} Rb8 {[%emt 0:
18:00]} 15. Nxa7 {[%emt 0:23:30]} Rxb2+ {[%emt 0:15:30]} 16. Rf2 {[%emt 0:08:
30]} Qb7 {[%emt 0:04:30]} 17. d5 {[%emt 0:06:30]} Nxd5 {[%emt 0:23:30]} 18.
exd5 {[%emt 0:09:30]} Rxf2+ {[%emt 0:00:00]} 19. Bxf2 {[%emt 0:00:30]} Bxa1 {
[%emt 0:00:00]} 20. Qxa1 {[%emt 0:00:30]} Qxd5 {[%emt 0:00:30]} 21. a4 {[%emt
0:06:13]} Ra8 {[%emt 0:06:30]} 22. Qb1 {[%emt 0:04:50]} Nc5 {[%emt 0:08:40]}
23. a5 {[%emt 0:05:09]} Kg7 {[%emt 0:07:22]} 24. Qb6 {[%emt 0:00:24]} Qd2 {
[%emt 0:07:21]} 25. Kf1 {[%emt 0:02:47]} Qd1 {[%emt 0:01:40]} 26. Nc6 {[%emt 0:
02:32]} Nb3 {[%emt 0:02:18]} 27. Qe3 {[%emt 0:03:56]} e5 {[%emt 0:00:56]} 28.
Kg2 {[%emt 0:00:33]} Nxa5 {[%emt 0:01:11]} 29. Qa3 {[%emt 0:00:32]} Qd5 {[%emt
0:00:33]} 30. Nb4 {[%emt 0:00:27]} Qb7 {[%emt 0:00:32]} 31. Qc3 {[%emt 0:00:29]
} Rc8 {[%emt 0:00:20]} 32. Qa3 {[%emt 0:00:31]} Nc4 {[%emt 0:00:18]} 33. Qc3 {
[%emt 0:00:31]} Na5 {[%emt 0:01:43]} 34. Qd2 {[%emt 0:00:23]} Nc4 {[%emt 0:00:
06]} 35. Qc3 {[%emt 0:00:11]} d5 {[%emt 0:00:53]} 36. Nec2 {[%emt 0:00:26]} d4
{[%emt 0:00:42]} 37. Qe1 {[%emt 0:00:19]} f6 {[%emt 0:00:47]} 38. Nd3 {[%emt 0:
01:10]} Qb3 {[%emt 0:00:19]} 39. Ncb4 {[%emt 0:00:26]} Ra8 {[%emt 0:00:38]} 40.
g4 {[%emt 0:00:00]} g5 {[%emt 0:00:00]} 41. Qe4 {[%emt 0:05:41]} Rf8 {[%emt 0:
09:41]} 42. Qd5 {[%emt 0:12:17]} Rf7 {[%emt 0:07:28]} 43. h4 {[%emt 0:01:12]}
h6 {[%emt 0:04:08]} 44. h5 {[%emt 0:00:24]} Nd2 {[%emt 0:00:51]} 45. Qxb3 {
[%emt 0:05:01]} Nxb3 {[%emt 0:00:05]} 46. Be1 {[%emt 0:00:53]} Rc7 {[%emt 0:01:
58]} 47. Kf1 {[%emt 0:01:08]} Kf7 {[%emt 0:01:15]} 48. Nf2 {[%emt 0:03:41]} Rc1
{[%emt 0:02:11]} 49. Ne4 {[%emt 0:02:00]} Nc5 {[%emt 0:04:50]} 50. Nxc5 {[%emt
0:03:05]} Rxc5 {[%emt 0:00:05]} 51. Ke2 {[%emt 0:00:30]} Ke6 {[%emt 0:01:04]}
52. Nd3 {[%emt 0:00:02]} Rc2+ {[%emt 0:00:23]} 53. Bd2 {[%emt 0:00:02]} Rc5 {
[%emt 0:01:57]} 54. Be1 {[%emt 0:00:30]} Rc2+ {[%emt 0:00:30]} 55. Bd2 {[%emt
0:00:30]} Rc8 {[%emt 0:00:01]} 56. Nf2 {[%emt 0:00:40]} f5 {[%emt 0:02:07]} 57.
Kd3 {[%emt 0:01:29]} f4 {[%emt 0:00:34]} 58. Ke4 {[%emt 0:00:27]} Rc2 {[%emt 0:
00:24]} 59. Kd3 {[%emt 0:00:01]} Ra2 {[%emt 0:00:12]} 60. Ne4 {[%emt 0:00:01]}
Ra1 {[%emt 0:00:49]} 61. Bb4 {[%emt 0:00:38]} Kf7 {[%emt 0:00:35]} 62. Nd6+ {
[%emt 0:00:15]} Kg7 {[%emt 0:00:30]} 63. Ke4 {[%emt 0:01:26]} Rb1 {[%emt 0:00:
23]} 64. Nf5+ {[%emt 0:00:37]} Kh7 {[%emt 0:00:06]} 65. Bd2 {[%emt 0:00:28]}
Rd1 {[%emt 0:00:23]} 66. Kd3 {[%emt 0:00:08]} Rf1 {[%emt 0:01:01]} 67. Ke2 {
[%emt 0:00:10]} Rb1 {[%emt 0:00:20]} 68. Ba5 {[%emt 0:00:35]} Rb5 {[%emt 0:00:
43]} 69. Be1 {[%emt 0:01:05]} Rb3 {[%emt 0:00:22]} 70. Bd2 {[%emt 0:00:30]} Ra3
{[%emt 0:00:31]} 71. Nd6 {[%emt 0:00:20]} Ra4 {[%emt 0:00:41]} 72. Kd3 {[%emt
0:00:37]} Ra3+ {[%emt 0:00:28]} 73. Ke4 {[%emt 0:00:22]} Ra2 {[%emt 0:00:26]}
74. Nc4 {[%emt 0:00:16]} Ra1 {[%emt 0:00:37]} 75. Nxe5 {[%emt 0:00:38]} Rd1 {
[%emt 0:00:15]} 76. Nc4 {[%emt 0:00:24]} Rf1 {[%emt 0:00:26]} 77. Ne5 {[%emt 0:
00:36]} Rd1 {[%emt 0:00:15]} 78. Kd3 {[%emt 0:00:07]} Kg7 {[%emt 0:00:15]} 79.
Nc6 {[%emt 0:00:15]} Kh7 {[%emt 0:00:45]} 80. Nxd4 {[%emt 0:00:04]} Kg7 {[%emt
0:00:17]} 81. Ke2 {[%emt 0:00:26]} Rb1 {[%emt 0:00:19]} 82. Bc3 {[%emt 0:01:02]
} Kh7 {[%emt 0:00:08]} 83. Nf5 {[%emt 0:00:08]} Rb7 {[%emt 0:00:33]} 84. Kd3 {
[%emt 0:00:11]} Rc7 {[%emt 0:01:21]} 85. Be5 {[%emt 0:00:18]} Ra7 {[%emt 0:00:
49]} 86. Ke4 {[%emt 0:01:48]} Ra5 {[%emt 0:00:30]} 87. Nd4 {[%emt 0:01:03]} Kg8
{[%emt 0:00:36]} 88. Nf5 {[%emt 0:00:24]} Kh7 {[%emt 0:00:05]} 89. Bf6 {[%emt
0:00:39]} Rb5 {[%emt 0:00:18]} 90. Nd4 {[%emt 0:00:23]} Ra5 {[%emt 0:00:12]}
91. Be5 {[%emt 0:00:38]} Ra7 {[%emt 0:00:24]} 92. Kd5 {[%emt 0:00:31]} Ra6 {
[%emt 0:00:32]} 93. Bd6 {[%emt 0:00:13]} Ra4 {[%emt 0:01:27]} 94. Bf8 {[%emt 0:
00:47]} Ra8 {[%emt 0:00:08]} 95. Ne6 {[%emt 0:00:29]} Rb8 {[%emt 0:00:46]} 96.
Ke5 {[%emt 0:00:29]} Rb3 {[%emt 0:00:35]} 97. Nd4 {[%emt 0:00:22]} Rb8 {[%emt
0:00:30]} 98. Bd6 {[%emt 0:00:06]} Rb6 {[%emt 0:00:33]} 99. Ke6 {[%emt 0:00:16]
} Ra6 {[%emt 0:00:28]} 100. Nf5 {[%emt 0:00:42]} Ra8 {[%emt 0:00:10]} 101. Kf7
{[%emt 0:00:30]} Ra7+ {[%emt 0:00:39]} 102. Be7 {[%emt 0:00:03]} Rb7 {[%emt 0:
00:29]} 103. Nd4 {[%emt 0:01:22]} Ra7 {[%emt 0:00:43]} 104. Ne6 {[%emt 0:00:35]
} Rb7 {[%emt 0:00:20]} 105. Nf8+ {[%emt 0:00:37]} Kh8 {[%emt 0:00:06]} 106.
Ng6+ {[%emt 0:00:27]} Kh7 {[%emt 0:00:05]} 107. Ne5 {[%emt 0:00:20]} Ra7 {
[%emt 0:00:27]} 108. Nc6 {[%emt 0:00:41]} Rb7 {[%emt 0:00:37]} 109. Nd4 {[%emt
0:00:26]} Ra7 {[%emt 0:00:18]} 110. Ne6 {[%emt 0:00:31]} Rb7 {[%emt 0:00:10]}
111. Kf6 {[%emt 0:00:35]} Ra7 {[%emt 0:01:35]} 112. Bc5 {[%emt 0:00:22]} Rb7 {
[%emt 0:00:54]} 113. Nf8+ {[%emt 0:00:37]} Kg8 {[%emt 0:00:28]} 114. Kg6 {
[%emt 0:00:27]} Rc7 {[%emt 0:00:21]} 115. Ne6 {[%emt 0:00:07]} Rc6 {[%emt 0:00:
17]} 116. Kf6 {[%emt 0:00:21]} Ra6 {[%emt 0:00:50]} 117. Bf8 {[%emt 0:01:06]}
Kh7 {[%emt 0:00:26]} 118. Kf7 {[%emt 0:00:20]} Ra7+ {[%emt 0:00:10]} 119. Be7 {
[%emt 0:00:38]} 1/2-1/2

[Event "Wch u20 girls"]
[Site "Kocaeli"]
[Date "2013.09.23"]
[Round "10.18"]
[White "Derakhshani, Dorsa"]
[Black "Ivana Maria, Furtado"]
[Result "0-1"]
[ECO "C02"]
[WhiteElo "2078"]
[BlackElo "2134"]
[PlyCount "56"]
[EventDate "2013.09.??"]
[EventType "swiss"]
[EventRounds "13"]
[EventCountry "TUR"]
[Source "CBase R.Goldau"]
[SourceDate "2000.03.01"]
[TimeControl "40/5400+30:1800+30"]

1. e4 {[%emt 0:00:30]} e6 {[%emt 0:00:30]} 2. d4 {[%emt 0:00:00]} d5 {[%emt 0:
00:30]} 3. e5 {[%emt 0:00:00]} c5 {[%emt 0:00:00]} 4. c3 {[%emt 0:00:00]} Nc6 {
[%emt 0:00:00]} 5. Nf3 {[%emt 0:00:00]} Qb6 {[%emt 0:00:30]} 6. a3 {[%emt 0:00:
30]} Nh6 {[%emt 0:00:30]} 7. b4 {[%emt 0:00:30]} cxd4 {[%emt 0:00:00]} 8. cxd4
{[%emt 0:00:30]} Nf5 {[%emt 0:00:00]} 9. Bb2 {[%emt 0:00:30]} Bd7 {[%emt 0:00:
30]} 10. g4 {[%emt 0:00:30]} Nfe7 {[%emt 0:00:30]} 11. Nc3 {[%emt 0:00:30]} Na5
{[%emt 0:01:30]} 12. Nd2 {[%emt 0:02:30]} Ng6 {[%emt 0:02:30]} 13. h4 {[%emt 0:
08:30]} Be7 {[%emt 0:03:30]} 14. h5 {[%emt 0:08:30]} Nf4 {[%emt 0:00:30]} 15.
Rc1 {[%emt 0:06:30]} Rc8 {[%emt 0:13:30]} 16. Qf3 {[%emt 0:16:30]} Bg5 {[%emt
0:07:30]} 17. Rc2 {[%emt 0:03:30]} O-O {[%emt 0:27:30]} 18. bxa5 {[%emt 0:08:
30]} Qxd4 {[%emt 0:01:30]} 19. Nd1 {[%emt 0:04:30]} Qa4 {[%emt 0:00:30]} 20.
Rc3 {[%emt 0:07:30]} d4 {[%emt 0:02:30]} 21. Rxc8 {[%emt 0:02:30]} Rxc8 {[%emt
0:00:30]} 22. Bd3 {[%emt 0:11:22]} Nxd3+ {[%emt 0:02:30]} 23. Qxd3 {[%emt 0:00:
06]} Bb5 {[%emt 0:00:30]} 24. Qxd4 {[%emt 0:01:17]} Rd8 {[%emt 0:00:30]} 25.
Qxd8+ {[%emt 0:02:24]} Bxd8 {[%emt 0:00:00]} 26. Nc3 {[%emt 0:00:15]} Qd4 {
[%emt 0:03:00]} 27. Nf3 {[%emt 0:05:16]} Qxg4 {[%emt 0:02:30]} 28. Nxb5 {[%emt
0:01:17]} Bxa5+ {[%emt 0:00:30]} 0-1

[Event "Wch u20 girls"]
[Site "Kocaeli"]
[Date "2013.09.23"]
[Round "10.20"]
[White "Bezgodova, Maria"]
[Black "Assaubayeva, Bibissara"]
[Result "1-0"]
[ECO "B70"]
[WhiteElo "2172"]
[BlackElo "1761"]
[PlyCount "143"]
[EventDate "2013.09.??"]
[EventType "swiss"]
[EventRounds "13"]
[EventCountry "TUR"]
[Source "CBase R.Goldau"]
[SourceDate "2000.03.01"]
[TimeControl "40/5400+30:1800+30"]

1. e4 {[%emt 0:00:30]} c5 {[%emt 0:00:30]} 2. Nf3 {[%emt 0:00:00]} d6 {[%emt 0:
00:00]} 3. d4 {[%emt 0:00:00]} cxd4 {[%emt 0:00:00]} 4. Nxd4 {[%emt 0:00:00]}
Nf6 {[%emt 0:00:30]} 5. Nc3 {[%emt 0:00:00]} g6 {[%emt 0:00:30]} 6. Be2 {[%emt
0:03:30]} Bg7 {[%emt 0:00:30]} 7. O-O {[%emt 0:00:30]} O-O {[%emt 0:00:30]} 8.
Bg5 {[%emt 0:01:30]} Nc6 {[%emt 0:01:30]} 9. Nb3 {[%emt 0:00:30]} a6 {[%emt 0:
04:30]} 10. Re1 {[%emt 0:02:30]} b5 {[%emt 0:11:30]} 11. Bf1 {[%emt 0:05:30]}
Bb7 {[%emt 0:01:30]} 12. Qd2 {[%emt 0:07:30]} Ne5 {[%emt 0:06:30]} 13. Nd5 {
[%emt 0:06:30]} Bxd5 {[%emt 0:14:30]} 14. exd5 {[%emt 0:00:30]} Rc8 {[%emt 0:
01:30]} 15. c3 {[%emt 0:23:30]} Qc7 {[%emt 0:12:30]} 16. Nd4 {[%emt 0:14:30]}
Qc5 {[%emt 0:06:30]} 17. a4 {[%emt 0:02:30]} Qxd5 {[%emt 0:21:03]} 18. axb5 {
[%emt 0:00:30]} axb5 {[%emt 0:00:24]} 19. Nxb5 {[%emt 0:02:30]} Qxd2 {[%emt 0:
04:42]} 20. Bxd2 {[%emt 0:00:00]} Ra8 {[%emt 0:01:39]} 21. Nd4 {[%emt 0:04:00]}
Rxa1 {[%emt 0:03:07]} 22. Rxa1 {[%emt 0:00:00]} Ne4 {[%emt 0:00:16]} 23. Be1 {
[%emt 0:03:00]} Nc5 {[%emt 0:01:03]} 24. b4 {[%emt 0:01:30]} Ncd3 {[%emt 0:01:
10]} 25. Bd2 {[%emt 0:04:02]} Rc8 {[%emt 0:01:16]} 26. b5 {[%emt 0:01:43]} Nc5
{[%emt 0:01:41]} 27. f4 {[%emt 0:03:41]} Ned7 {[%emt 0:00:48]} 28. Ra7 {[%emt
0:00:44]} Bf6 {[%emt 0:01:21]} 29. g3 {[%emt 0:02:27]} Nb6 {[%emt 0:00:48]} 30.
Nc6 {[%emt 0:01:28]} Kf8 {[%emt 0:00:54]} 31. c4 {[%emt 0:01:37]} Ke8 {[%emt 0:
01:15]} 32. Ba5 {[%emt 0:01:02]} Ncd7 {[%emt 0:00:20]} 33. Ra6 {[%emt 0:01:22]}
Na4 {[%emt 0:00:48]} 34. Bg2 {[%emt 0:02:06]} Ndc5 {[%emt 0:00:15]} 35. Ra7 {
[%emt 0:00:13]} Nd7 {[%emt 0:00:10]} 36. Bd2 {[%emt 0:02:25]} Nab6 {[%emt 0:00:
09]} 37. Bf1 {[%emt 0:01:14]} Nc5 {[%emt 0:00:39]} 38. Be3 {[%emt 0:00:34]}
Ncd7 {[%emt 0:00:19]} 39. Ra6 {[%emt 0:00:41]} Na8 {[%emt 0:00:48]} 40. b6 {
[%emt 0:00:00]} Ndxb6 {[%emt 0:00:00]} 41. Bxb6 {[%emt 0:01:11]} Nxb6 {[%emt 0:
02:35]} 42. Rxb6 {[%emt 0:00:30]} Kd7 {[%emt 0:00:00]} 43. Bg2 {[%emt 0:00:30]}
Rc7 {[%emt 0:02:00]} 44. Kf1 {[%emt 0:00:30]} e6 {[%emt 0:04:30]} 45. Ke2 {
[%emt 0:00:30]} h6 {[%emt 0:00:30]} 46. Kd3 {[%emt 0:01:30]} g5 {[%emt 0:00:30]
} 47. f5 {[%emt 0:08:30]} g4 {[%emt 0:01:30]} 48. Rb8 {[%emt 0:01:30]} Rxc6 {
[%emt 0:02:30]} 49. Bxc6+ {[%emt 0:00:00]} Kxc6 {[%emt 0:00:00]} 50. Rf8 {
[%emt 0:00:00]} exf5 {[%emt 0:00:00]} 51. Rxf7 {[%emt 0:00:30]} Bg5 {[%emt 0:
00:30]} 52. Rxf5 {[%emt 0:00:00]} Kd7 {[%emt 0:00:30]} 53. Ke4 {[%emt 0:00:00]}
Ke6 {[%emt 0:00:30]} 54. Ra5 {[%emt 0:00:30]} Bf6 {[%emt 0:00:30]} 55. Kf4 {
[%emt 0:01:30]} Bc3 {[%emt 0:00:30]} 56. Rb5 {[%emt 0:00:30]} Be5+ {[%emt 0:00:
30]} 57. Kxg4 {[%emt 0:00:00]} Kf7 {[%emt 0:00:30]} 58. Kh5 {[%emt 0:01:00]}
Bg7 {[%emt 0:00:30]} 59. Rf5+ {[%emt 0:00:00]} Ke6 {[%emt 0:00:30]} 60. Kg6 {
[%emt 0:00:00]} Bd4 {[%emt 0:00:30]} 61. Rf1 {[%emt 0:00:30]} Bc3 {[%emt 0:00:
30]} 62. Kxh6 {[%emt 0:00:30]} Ke5 {[%emt 0:00:30]} 63. Rd1 {[%emt 0:00:00]}
Ke6 {[%emt 0:01:30]} 64. g4 {[%emt 0:00:00]} Be5 {[%emt 0:00:00]} 65. h4 {
[%emt 0:00:00]} Kf7 {[%emt 0:00:00]} 66. Kh7 {[%emt 0:00:00]} Kf8 {[%emt 0:00:
30]} 67. Rf1+ {[%emt 0:00:30]} Ke7 {[%emt 0:01:30]} 68. g5 {[%emt 0:00:30]} Kd7
{[%emt 0:00:00]} 69. g6 {[%emt 0:00:00]} Kc6 {[%emt 0:00:00]} 70. g7 {[%emt 0:
00:00]} Bxg7 {[%emt 0:00:30]} 71. Kxg7 {[%emt 0:00:30]} Kc5 {[%emt 0:00:00]}
72. Rh1 {[%emt 0:00:30]} 1-0